{"text_format":"1","workbook":"xlsx","n_sheets":3,"sheets":["Vstupy","TL-159","LS-159"],"not_rendered":{"charts":0,"images":0,"macros":0,"external_links":0,"defined_names":2,"comments":0,"pivot_tables":0},"unopened":[],"bounds":{"document_bytes":16777216,"sheet_cells":100000,"rows_first":2000,"rows_last":500,"rows_between":2000,"halvings":0,"cell_chars":16384,"cell_head_chars":4096},"cells_cut":0,"cells_raw":0,"read":"whole","date_system":"1900"}

{"sheet":"Vstupy","index":0,"n_rows":16,"n_cols":5,"rows_kept":16,"cut":false,"hidden":false,"merged":[[15,3,15,12],[2,0,2,2],[4,0,4,2],[11,8,11,19],[11,3,11,6],[12,3,12,13]]}
[null,null,null,"V Kč bez DPH"]
[]
[]
[]
["cena za 1 hodinu pravidelného servisu "]
["cena za 1 hodinu  paušálu"]
[]
[null,null,null,"Předmětem smlouvy je:"]
[null,null,null,"1.1.","závazek poskytovatele poskytnout objednateli komplexní podporu systému KTL-159 (dále jen „služba“), zahrnující následující dílčí služby:"]
[]
[]
["cena za 1 hodinu pravidelného servisu ",null,null,"a)   profylaktické práce na systému KTL-159;"]
["cena za 1 hodinu  paušálu",null,null,"b) udržování dílčí schopnosti modernizace, profylaktických prací, oprav, poskytování bulletinové služby a aktualizace technické dokumentace systému KTL-159;"]
[null,null,null,"c)   opravy systému KTL-159 realizované objednávkovým způsobem nad rámec profylaktických prací;"]
[null,null,null,"d)   poskytování změnové služby podle bulletinů výrobce systému KTL-159 a její realizace objednávkovým způsobem;"]
[null,null,null,"e)   poskytování školení ke KTL-159 nebo k jeho opravám, údržbě a provozování podle požadavků objednatele."]

{"sheet":"TL-159","index":1,"n_rows":59,"n_cols":13,"rows_kept":59,"cut":false,"hidden":false,"merged":[[5,12,6,12],[43,1,43,11],[5,0,5,1],[5,2,5,4],[5,5,5,7],[7,0,37,0],[42,1,42,5]]}
[null,null,null,null,null,null,null,null,null,null,"Příloha č.3 ke smlouvě KTL-159"]
[]
[null," "]
[null,null,null,null,"Cenová kalkulace výkonů a ostatních nákladů služby - profylaktické práce"]
[]
["Název",null,"Časový interval",null,null,"cena za x hod (bez DPH)",null,null,null,null,null,null,"Pzn."]
["Položka","Úkon","Měsíční","Čtvrtletní","Roční","Počet pracovníků","Délka práce","Celkem Kč (bez DPH)","ostatní náklady (bez DPH)","cena za materiál (bez DPH)","CELKEM  ZA DÍLČÍ PLNĚNÍ (bez DPH)","CELKEM  ZA DÍLČÍ PLNĚNÍ (vč. DPH)"]
["Trenažér letounu L-159 TL-159","Kontrola vibrační plošiny a pneumatické kompenzační smyčky.","x","x","x",2,4,{"$f":"F8*G8*Vstupy!$D$5","v":0},null,null,{"$f":"H8+I8+J8","v":0},{"$f":"K8*1.21","v":0},"1)"]
[null,"Kontrola a nastavení přístrojů v kabině v celém měřícím rozsahu.","x","x","x",2,3,{"$f":"F9*G9*Vstupy!$D$5","v":0},null,null,{"$f":"H9+I9+J9","v":0},{"$f":"K9*1.21","v":0}]
[null,"Kontrola a seřízení zobrazení HUD, odstranění prachu.","x","x","x",1,1,{"$f":"F10*G10*Vstupy!$D$5","v":0},null,null,0,0,"2)"]
[null,"Kontrola a seřízení zobrazení MFD.","x","x","x",1,1,{"$f":"F11*G11*Vstupy!$D$5","v":0},null,null,0,0]
[null,"Kontrola a seřízení zatěžovacího mechanizmu řídící páky a pedálů.","x","x","x",2,1.5,{"$f":"F12*G12*Vstupy!$D$5","v":0},null,null,0,0]
[null,"Kontrola automatických záznamů o provozu komponentů trenažéru.","x","x","x",1,0.5,{"$f":"F13*G13*Vstupy!$D$5","v":0},null,null,0,0]
[null,"Kontrola filtru chladícího zařízení motorů.","x","x","x",1,0.5,{"$f":"F14*G14*Vstupy!$D$5","v":0},null,null,0,0]
[null,"Očistění kolejnice motoru, namazání vozíčků, vyčištění prostoru koncových spínačů, nastavení parametrů, nastavení tenzometrů, rekalibraci měniče motorů, kontrolu funkce akcelerometrů a bezpečnostních spínačů na páce zatěžovacího mechanizmu.",null,"x","x",2,4,{"$f":"F15*G15*Vstupy!$D$5","v":0},null,null,{"$f":"H15+I15+J15","v":0},0,"3)"]
[null,"Výměna filtrů chladícího zařízení motorů.",null,"x","x",1,0.5,{"$f":"F16*G16*Vstupy!$D$5","v":0},null,null,{"$f":"H16+I16+J16","v":0},0]
[null,"Výměna filtru dýchače pilota.",null,"x","x",1,0.5,{"$f":"F17*G17*Vstupy!$D$5","v":0},null,null,0,0]
[null,"Kontrolu silnoproudých zařízení a testy proudových chráničů – 2x v rozvaděči R111, 1x v rozvaděči R112.1.",null,"x","x",2,1,{"$f":"F18*G18*Vstupy!$D$5","v":0},null,null,0,0]
[null,"Provedení testu nouzového vypnutí trenažéru nouzovým tlačítkem.",null,"x","x",2,1,{"$f":"F19*G19*Vstupy!$D$5","v":0},null,null,0,0]
[null,"Zjištění stavu a opotřebení ovládacích prvků, kontrolek a displejů kabiny.",null,"x","x",1,1,{"$f":"F20*G20*Vstupy!$D$5","v":0},null,null,0,0]
[null,"Nastavení regulace osvětlení kabiny.",null,"x","x",1,0.5,{"$f":"F21*G21*Vstupy!$D$5","v":0},null,null,0,0]
[null,"Kontrolu flexibilních přechodů v chladícím systému kabiny, kontrolu těsnosti.",null,"x","x",2,2,{"$f":"F22*G22*Vstupy!$D$5","v":0},null,null,0,0]
[null,"Kontrolu napájecího napětí a proudu v obvodech malého napětí.",null,"x","x",1,1,{"$f":"F23*G23*Vstupy!$D$5","v":0},null,null,0,0]
[null,"Doplnění maziva do ložisek vibračního systému.",null,"x","x",1,0.5,{"$f":"F24*G24*Vstupy!$D$5","v":0},null,null,0,0]
[null,"Kontrolu a dotažení šroubů vibračního mechanizmu.",null,"x","x",1,0.5,{"$f":"F25*G25*Vstupy!$D$5","v":0},null,null,0,0]
[null,"Kontrolu těsnosti rozvodů tlakového vzduchu a rozvaděče pneumatiky.",null,"x","x",1,0.5,{"$f":"F26*G26*Vstupy!$D$5","v":0},null,null,0,0]
[null,"Kontrolu a seřízení projekčního systému.*",null,"x","x",2,4,{"$f":"F27*G27*Vstupy!$D$5","v":0},null,null,0,0]
[null,"Kontrolu adresářových stromů na jednotlivých pracovních stanicích.",null,"x","x",1,2,{"$f":"F28*G28*Vstupy!$D$5","v":0},null,null,0,0]
[null,"Kontrolu konzistence dat na pracovních stanicích.",null,"x","x",1,2,{"$f":"F29*G29*Vstupy!$D$5","v":0},null,null,{"$f":"H29+I29+J29","v":0},0]
[null,"Rozebrání a vyčištění všech pracovních stanic.",null,null,"x",2,8,{"$f":"F30*G30*Vstupy!$D$5","v":0},null,null,0,0,"5)"]
[null,"Kontrolu aktuální verze BIOSu na všech pracovních stanicích.",null,null,"x",1,3,{"$f":"F31*G31*Vstupy!$D$5","v":0},null,null,0,0]
[null,"Kontrolu počítačové sítě LAN.",null,null,"x",1,1,{"$f":"F32*G32*Vstupy!$D$5","v":0},null,null,0,0]
[null,"Kontrola stavu projekční plochy a konstrukce se zaměřením čistotu a povrchovou úpravu   nátěru.",null,null,"x",2,8,{"$f":"F33*G33*Vstupy!$D$5","v":0},null,null,0,0,"6)"]
[null,"Kontrola a oprava nátěru interiéru kabiny ",null,null,"x",1,4,{"$f":"F34*G34*Vstupy!$D$5","v":0},null,null,0,0]
[null,"Zkontrolovat stav zařízení záložního zdroje UPS",null,null,"x",1,1,{"$f":"F35*G35*Vstupy!$D$5","v":0},null,null,0,0]
[null,"Celkem za předmět díla","x",null,null,null,null,null,null,null,{"$f":"SUM(K8:K14)","v":0},{"$f":"SUM(L8:L14)","v":0}]
[null,"Celkem za předmět díla",null,"x",null,null,null,null,null,null,{"$f":"SUM(K8:K29)","v":0},{"$f":"SUM(L8:L29)","v":0}]
[null,"Celkem za předmět díla",null,null,"x",null,null,null,null,null,{"$f":"SUM(K8:K35)","v":0},{"$f":"SUM(L8:L35)","v":0}]
[]
[]
[]
[]
["Pzn.","1) ostatní náklady = dopravné pro čtyři osoby z Brna"]
[null,"2) doporučujeme zachovat měsíčně, HUD je nutno kvůli analogovému  systému řízení korigovat v krátkých intervalech"]
[null,"3) ostatní náklady = dopravné pro čtyři osoby z Brna"]
[null,"4) doporučujeme ponechat, lokální barevné opravy se provádí pravidelně"]
[null,"5) ostatní náklady = dopravné pro čtyři osoby z Brna"]
[null,"6) ostatní náklady = dopravné pro čtyři osoby z Brna"]
[]
[]
[null,"V Praze                                       2020",null,null,null,null,null,null,null,null,"V Praze                              2020"]
[]
[]
[]
[null,"LOM PRAHA s.p.",null,null,null,null,null,null,null,null,"Ředitel VRG a.s."]
[null,"ředitel pro obchod a logistiku",null,null,null,null,null,null,null,null,"Ing. Milan Doležal "]
[null,"Ing. Bc. Radomír Daňhel, MBA, LL.M."]
[]
[null,"Podpis a razítko objednatele",null,null,null,null,null,null,null,null,"Podpis a razítko poskytovatele"]

{"sheet":"LS-159","index":2,"n_rows":40,"n_cols":14,"rows_kept":40,"cut":false,"hidden":false,"merged":[[4,0,4,1],[4,2,4,4],[4,5,4,7],[6,0,18,0],[32,7,32,8],[31,10,31,12],[34,10,34,11],[35,10,35,11],[33,7,33,8],[34,7,34,8],[35,7,35,8],[31,7,31,9]]}
[null,null,null,null,null,null,null,null,null,null,"Příloha č.3 ke smlouvě KTL-159"]
[]
[null,null,null,null,"Cenová kalkulace výkonů a ostatních nákladů služby - profylaktické práce"]
[]
["Název",null,"Časový interval",null,null,"cena za x hod (bez DPH)"]
["Položka","Úkon","Měsíční","Čtvrtletní","Roční","Počet pracovníků","Délka práce","Celkem Kč (bez DPH)","ostatní náklady (bez DPH)","cena za materiál (bez DPH)","CELKEM  ZA DÍLČÍ PLNĚNÍ (bez DPH)","CELKEM  ZA DÍLČÍ PLNĚNÍ (vč. DPH)","Pzn."]
["Letkový simulátor LS-159","Kontrola a seřízení zobrazení MFD a LCD palubní desky.",null,"x","x",1,1,{"$f":"F7*G7*Vstupy!$D$5","v":0},null,null,{"$f":"H7+I7+J7","v":0},{"$f":"K7*1.21","v":0},"1)"]
[null,"Kontrola obsahu logovacích souborů software na pracovištích instruktora a žáka.",null,"x","x",1,0.5,{"$f":"F8*G8*Vstupy!$D$5","v":0},null,null,0,{"$f":"K8*1.21","v":0},"2)"]
[null,"Vymazání dočasných a nepotřebných souborů z pevných disků počítačů.",null,"x","x",1,0.5,{"$f":"F9*G9*Vstupy!$D$5","v":0},null,null,0,0,"3)"]
[null,"Kontrola integrity databáze úloh a uživatelů simulátoru.",null,"x","x",1,1,{"$f":"F10*G10*Vstupy!$D$5","v":0},null,null,0,0,"4)"]
[null,"Kontrola adresářových stromů na jednotlivých pracovních stanicích.",null,"x","x",1,1,{"$f":"F11*G11*Vstupy!$D$5","v":0},null,null,0,0,"5)"]
[null,"Revize pohyblivých elektrických přívodů.",null,"x","x",1,2,{"$f":"F12*G12*Vstupy!$D$5","v":0},null,null,0,0,"6)"]
[null,"Kontrolu a seřízení projekčního systému.",null,"x","x",2,4,{"$f":"F13*G13*Vstupy!$D$5","v":0},null,null,0,0]
[null,"Kontrola aktuálních verzí BIOSu, kontrola počítačových sítí LAN, CAN.",null,null,"x",1,2,{"$f":"F14*G14*Vstupy!$D$5","v":0},null,null,0,0]
[null,"Kontrola a oprava nátěru projekční plochy",null,null,"x",1,4,{"$f":"F15*G15*Vstupy!$D$5","v":0},null,null,0,0]
[null,"Kontrola a oprava nátěru interiéru kabiny",null,null,"x",2,3,{"$f":"F16*G16*Vstupy!$D$5","v":0},null,null,0,0]
[null,"Celkem za předmět díla",null,null,null,null,null,null,null,null,0,0]
[null,"Celkem za předmět díla",null,"x",null,null,null,null,null,null,{"$f":"SUM(K7:K13)","v":0},{"$f":"SUM(L7:L13)","v":0}]
[null,"Celkem za předmět díla",null,null,"x",null,null,null,null,null,{"$f":"SUM(K7:K16)","v":0},{"$f":"SUM(L7:L16)","v":0}]
[]
[]
["Pzn.","1) ostatní náklady = dopravné pro dvě osoby z Brna",null,null,null,null,null,null,null,null,null,null,null," "]
[null,"2) roční profylaxe je nahrazena čtvrtou čtvrtletní"]
[null,"3) roční profylaxe je nahrazena čtvrtou čtvrtletní"]
[null,"4) roční profylaxe je nahrazena čtvrtou čtvrtletní"]
[null,"5) roční profylaxe je nahrazena čtvrtou čtvrtletní"]
[null,"6) roční profylaxe je nahrazena čtvrtou čtvrtletní"]
[]
[]
[]
[]
[null,"V Praze                                       2021",null,null,null,null,null,null,null,null,"V Praze                              2021"]
[]
[null,null,null,null,null,null,null,null,null,null,"Ředitel VRG a.s."]
[null,"LOM PRAHA s.p.",null,null,null,null,null,null,null,null," Ing. Milan Doležal ","Ředitel LOM PRAHA s.p."]
[null,"ředitel pro obchod a logistiku",null,null,null,null,null,null,null,null," "]
[null,"Ing. Bc. Radomír Daňhel, MBA, LL.M."]
[null," "]
[]
[null,"Podpis a razítko objednatele",null,null,null,null,null,null,null,null,"Podpis a razítko poskytovatele"]